[Event "*** Titled Tuesday Blitz"]
[Site "Chess.com"]
[Date "2020.04.28"]
[Round "6"]
[White "IljaJoke"]
[Black "1977Ivan"]
[Result "0-1"]
[WhiteElo "2477"]
[BlackElo "2641"]
[TimeControl "180+1"]
[EndTime "11:06:09 PDT"]
[Termination "1977Ivan won by resignation"]

1. d4 {[%clk 0:03:00.9]} 1... d6 {[%clk 0:02:59]} 2. c4 {[%clk 0:03:00.5]} 2...
e5 {[%clk 0:02:58.1]} 3. Nc3 {[%clk 0:02:54.7]} 3... exd4 {[%clk 0:02:57.5]} 4.
Qxd4 {[%clk 0:02:55.3]} 4... Nc6 {[%clk 0:02:58.1]} 5. Qd2 {[%clk 0:02:55.1]}
5... Nf6 {[%clk 0:02:58.1]} 6. g3 {[%clk 0:02:50.6]} 6... g6 {[%clk 0:02:57.5]}
7. Bg2 {[%clk 0:02:50.4]} 7... Bg7 {[%clk 0:02:56.7]} 8. b3 {[%clk 0:02:48.5]}
8... O-O {[%clk 0:02:46.6]} 9. Bb2 {[%clk 0:02:48.5]} 9... Re8 {[%clk
0:02:45.9]} 10. Nh3 {[%clk 0:02:45]} 10... a5 {[%clk 0:02:18.7]} 11. O-O {[%clk
0:02:43.7]} 11... Ne5 {[%clk 0:02:18.7]} 12. Nf4 {[%clk 0:02:41.3]} 12... a4
{[%clk 0:02:16.7]} 13. Rad1 {[%clk 0:02:35.4]} 13... axb3 {[%clk 0:02:13.1]} 14.
axb3 {[%clk 0:02:36.3]} 14... h5 {[%clk 0:02:10.8]} 15. Ra1 {[%clk 0:02:24]}
15... Rxa1 {[%clk 0:02:07.1]} 16. Rxa1 {[%clk 0:02:24.9]} 16... h4 {[%clk
0:02:07.5]} 17. Ra7 {[%clk 0:02:19]} 17... c6 {[%clk 0:02:06.4]} 18. Ra1 {[%clk
0:02:09.8]} 18... Qb6 {[%clk 0:01:57.9]} 19. Qc2 {[%clk 0:01:53]} 19... Bf5
{[%clk 0:01:48.3]} 20. e4 {[%clk 0:01:43.3]} 20... Bg4 {[%clk 0:01:47.9]} 21.
Na4 {[%clk 0:01:33]} 21... Qc7 {[%clk 0:01:44]} 22. h3 {[%clk 0:00:59.4]} 22...
Bf3 {[%clk 0:01:30.1]} 23. Bxf3 {[%clk 0:00:55.4]} 23... Nxf3+ {[%clk
0:01:28.7]} 24. Kg2 {[%clk 0:00:55.9]} 24... Ng5 {[%clk 0:01:23.6]} 25. f3
{[%clk 0:00:37]} 25... hxg3 {[%clk 0:01:23]} 26. h4 {[%clk 0:00:35.2]} 26... Ne6
{[%clk 0:01:16.8]} 27. Nxe6 {[%clk 0:00:35.3]} 27... Rxe6 {[%clk 0:01:16.7]} 28.
Rd1 {[%clk 0:00:28.5]} 28... Nh5 {[%clk 0:01:12.5]} 29. Bxg7 {[%clk 0:00:28.2]}
29... Kxg7 {[%clk 0:01:12.8]} 30. Qc3+ {[%clk 0:00:24.3]} 30... Kg8 {[%clk
0:01:10.1]} 31. Qe3 {[%clk 0:00:23.6]} 31... Qe7 {[%clk 0:01:09]} 32. Qg5 {[%clk
0:00:22.1]} 32... Qxg5 {[%clk 0:01:06.4]} 33. hxg5 {[%clk 0:00:23]} 33... Re5
{[%clk 0:01:06.7]} 34. Rxd6 {[%clk 0:00:22.2]} 34... Rxg5 {[%clk 0:01:06.7]} 35.
Nc3 {[%clk 0:00:11.6]} 35... Nf4+ {[%clk 0:01:06.5]} 36. Kg1 {[%clk 0:00:10.9]}
36... g2 {[%clk 0:01:05.7]} 0-1

[Event "*** Titled Tuesday Blitz"]
[Site "Chess.com"]
[Date "2020.04.28"]
[Round "6"]
[White "JSMastropiero"]
[Black "Paladin61"]
[Result "0-1"]
[WhiteElo "2428"]
[BlackElo "2591"]
[TimeControl "180+1"]
[EndTime "11:06:09 PDT"]
[Termination "Paladin61 won by resignation"]

1. e4 {[%clk 0:01:15]} 1... c5 {[%clk 0:02:57.9]} 2. Nf3 {[%clk 0:01:14.3]} 2...
d6 {[%clk 0:02:58]} 3. Bb5+ {[%clk 0:01:13.2]} 3... Nd7 {[%clk 0:02:58]} 4. d4
{[%clk 0:01:12.2]} 4... cxd4 {[%clk 0:02:57.6]} 5. Qxd4 {[%clk 0:01:12.7]} 5...
a6 {[%clk 0:02:57.7]} 6. Bxd7+ {[%clk 0:01:13.1]} 6... Bxd7 {[%clk 0:02:58.3]}
7. Nc3 {[%clk 0:01:13.5]} 7... Rc8 {[%clk 0:02:52.1]} 8. Bg5 {[%clk 0:01:12.6]}
8... h6 {[%clk 0:02:50.1]} 9. Bh4 {[%clk 0:01:12.7]} 9... e5 {[%clk 0:02:49.8]}
10. Qd2 {[%clk 0:01:10]} 10... g5 {[%clk 0:02:46.6]} 11. Bg3 {[%clk 0:01:09]}
11... Nf6 {[%clk 0:02:46.3]} 12. O-O {[%clk 0:01:00.5]} 12... b5 {[%clk
0:02:44.6]} 13. Rfe1 {[%clk 0:00:59.2]} 13... Qc7 {[%clk 0:02:35.7]} 14. Rac1
{[%clk 0:00:54.4]} 14... Be7 {[%clk 0:02:20.8]} 15. h4 {[%clk 0:00:50.8]} 15...
g4 {[%clk 0:02:15.6]} 16. Nh2 {[%clk 0:00:51.1]} 16... Qc4 {[%clk 0:02:06]} 17.
a3 {[%clk 0:00:31.3]} 17... a5 {[%clk 0:02:04.3]} 18. Nf1 {[%clk 0:00:28]} 18...
b4 {[%clk 0:02:01.5]} 19. axb4 {[%clk 0:00:28.1]} 19... axb4 {[%clk 0:02:01.9]}
20. Nd5 {[%clk 0:00:28.2]} 20... Nxe4 {[%clk 0:01:36.4]} 21. Rxe4 {[%clk
0:00:22.7]} 21... Qxe4 {[%clk 0:01:36.8]} 22. Nxe7 {[%clk 0:00:21.1]} 22... Kxe7
{[%clk 0:01:35.6]} 23. Ne3 {[%clk 0:00:22]} 23... Be6 {[%clk 0:01:31.9]} 24. Re1
{[%clk 0:00:18.5]} 24... h5 {[%clk 0:01:21.6]} 25. c4 {[%clk 0:00:18.4]} 25...
bxc3 {[%clk 0:01:18.6]} 26. bxc3 {[%clk 0:00:18.3]} 26... Qc6 {[%clk 0:01:15.7]}
27. c4 {[%clk 0:00:17.1]} 27... f6 {[%clk 0:00:58.6]} 28. Nd5+ {[%clk 0:00:16]}
28... Bxd5 {[%clk 0:00:58]} 29. cxd5 {[%clk 0:00:16.9]} 29... Qc3 {[%clk
0:00:57.7]} 30. Qa2 {[%clk 0:00:16]} 30... Qxe1+ {[%clk 0:00:56.8]} 0-1

[Event "*** Titled Tuesday Blitz"]
[Site "Chess.com"]
[Date "2020.04.28"]
[Round "6"]
[White "DaggiGretarsson"]
[Black "Efremov_Vlad"]
[Result "1-0"]
[WhiteElo "2448"]
[BlackElo "2155"]
[TimeControl "180+1"]
[EndTime "11:06:14 PDT"]
[Termination "DaggiGretarsson won by resignation"]

1. d4 {[%clk 0:02:59.1]} 1... d5 {[%clk 0:02:59]} 2. Nf3 {[%clk 0:02:58.5]} 2...
Nf6 {[%clk 0:02:58.4]} 3. g3 {[%clk 0:02:58.7]} 3... Bf5 {[%clk 0:02:57.2]} 4.
Bg2 {[%clk 0:02:58.3]} 4... e6 {[%clk 0:02:57.2]} 5. O-O {[%clk 0:02:58.2]} 5...
Be7 {[%clk 0:02:57.4]} 6. c4 {[%clk 0:02:57.7]} 6... c6 {[%clk 0:02:56.5]} 7.
Nc3 {[%clk 0:02:54.7]} 7... O-O {[%clk 0:02:55.3]} 8. Qb3 {[%clk 0:02:53.9]}
8... Qb6 {[%clk 0:02:54.9]} 9. c5 {[%clk 0:02:53.1]} 9... Qxb3 {[%clk
0:02:53.5]} 10. axb3 {[%clk 0:02:52.9]} 10... Nbd7 {[%clk 0:02:48.9]} 11. b4
{[%clk 0:02:51.9]} 11... a6 {[%clk 0:02:48.1]} 12. Nd2 {[%clk 0:02:41.5]} 12...
Rad8 {[%clk 0:02:37.3]} 13. Nb3 {[%clk 0:02:38.1]} 13... e5 {[%clk 0:02:06.5]}
14. e3 {[%clk 0:02:10.7]} 14... Rfe8 {[%clk 0:01:54.7]} 15. Na5 {[%clk
0:02:09.3]} 15... Rb8 {[%clk 0:01:55.3]} 16. Bd2 {[%clk 0:02:00.2]} 16... Bd8
{[%clk 0:01:51.6]} 17. Rfe1 {[%clk 0:01:59.6]} 17... Bxa5 {[%clk 0:01:48.3]} 18.
bxa5 {[%clk 0:01:25.5]} 18... e4 {[%clk 0:01:48.1]} 19. Ra4 {[%clk 0:01:21.4]}
19... h5 {[%clk 0:01:45.4]} 20. Rb4 {[%clk 0:01:20.9]} 20... Nh7 {[%clk
0:01:19.6]} 21. Ra1 {[%clk 0:01:02.8]} 21... Nhf8 {[%clk 0:01:19.6]} 22. Ra3
{[%clk 0:01:01.9]} 22... Ne6 {[%clk 0:01:18.6]} 23. Rab3 {[%clk 0:01:00]} 23...
Nd8 {[%clk 0:01:19.2]} 24. Bf1 {[%clk 0:00:53]} 24... Rc8 {[%clk 0:01:16.4]} 25.
Na4 {[%clk 0:00:51.6]} 25... Rc7 {[%clk 0:01:10.4]} 26. Be2 {[%clk 0:00:34.7]}
26... Nf6 {[%clk 0:00:50]} 27. Rb6 {[%clk 0:00:32.3]} 27... g5 {[%clk
0:00:42.6]} 28. Bxa6 {[%clk 0:00:27.7]} 28... bxa6 {[%clk 0:00:41.6]} 29. Rxa6
{[%clk 0:00:27.7]} 29... Bc8 {[%clk 0:00:33.4]} 30. Ra8 {[%clk 0:00:25.8]} 30...
Ra7 {[%clk 0:00:34.3]} 31. Rxa7 {[%clk 0:00:24.7]} 1-0

[Event "*** Titled Tuesday Blitz"]
[Site "Chess.com"]
[Date "2020.04.28"]
[Round "6"]
[White "GMKrikor"]
[Black "almo64"]
[Result "0-1"]
[WhiteElo "2735"]
[BlackElo "2844"]
[TimeControl "180+1"]
[EndTime "11:06:15 PDT"]
[Termination "almo64 won by resignation"]

1. Nf3 {[%clk 0:03:00.7]} 1... d5 {[%clk 0:02:59.6]} 2. c4 {[%clk 0:03:00.3]}
2... d4 {[%clk 0:02:57.3]} 3. b4 {[%clk 0:03:00.2]} 3... c5 {[%clk 0:02:55.6]}
4. e3 {[%clk 0:02:56]} 4... dxe3 {[%clk 0:02:47.9]} 5. fxe3 {[%clk 0:02:55.4]}
5... cxb4 {[%clk 0:02:48.3]} 6. d4 {[%clk 0:02:53.3]} 6... Nf6 {[%clk 0:02:47]}
7. a3 {[%clk 0:02:50.6]} 7... bxa3 {[%clk 0:02:46.6]} 8. Bd3 {[%clk 0:02:50.3]}
8... g6 {[%clk 0:02:46.5]} 9. O-O {[%clk 0:02:49.5]} 9... Bg7 {[%clk 0:02:46.4]}
10. Bxa3 {[%clk 0:02:47.2]} 10... O-O {[%clk 0:02:45.5]} 11. Nc3 {[%clk
0:02:47.7]} 11... Bg4 {[%clk 0:02:40.7]} 12. h3 {[%clk 0:02:41.6]} 12... Bxf3
{[%clk 0:02:40.7]} 13. Qxf3 {[%clk 0:02:42.5]} 13... Nc6 {[%clk 0:02:41]} 14.
Nd5 {[%clk 0:02:06.2]} 14... Rc8 {[%clk 0:02:09.1]} 15. Rab1 {[%clk 0:01:49.1]}
15... b6 {[%clk 0:02:04.7]} 16. Nxf6+ {[%clk 0:01:34.4]} 16... Bxf6 {[%clk
0:02:03.1]} 17. Be4 {[%clk 0:01:33.9]} 17... Qd7 {[%clk 0:01:59.6]} 18. c5
{[%clk 0:01:31.2]} 18... Na5 {[%clk 0:01:36.3]} 19. cxb6 {[%clk 0:01:31]} 19...
axb6 {[%clk 0:01:36.1]} 20. Rxb6 {[%clk 0:01:18.8]} 20... Nc4 {[%clk 0:01:33.6]}
21. Rxf6 {[%clk 0:00:53.2]} 21... Nd2 {[%clk 0:01:22.2]} 22. Qf4 {[%clk
0:00:32.2]} 22... Nxf1 {[%clk 0:01:22.1]} 23. Rb6 {[%clk 0:00:15.2]} 23... Nd2
{[%clk 0:01:19.5]} 24. Rb7 {[%clk 0:00:13.6]} 24... Qa4 {[%clk 0:01:15.6]} 25.
Bxe7 {[%clk 0:00:12]} 25... Qd1+ {[%clk 0:01:15.2]} 26. Kf2 {[%clk 0:00:08.8]}
26... Qf1+ {[%clk 0:00:56.1]} 27. Kg3 {[%clk 0:00:09]} 27... Qe1+ {[%clk
0:00:56.5]} 28. Kg4 {[%clk 0:00:04.3]} 28... Nxe4 {[%clk 0:00:50]} 29. Bxf8
{[%clk 0:00:03.3]} 29... f5+ {[%clk 0:00:46.4]} 0-1

[Event "*** Titled Tuesday Blitz"]
[Site "Chess.com"]
[Date "2020.04.28"]
[Round "6"]
[White "bancsoo"]
[Black "Guachiney"]
[Result "1-0"]
[WhiteElo "2689"]
[BlackElo "2825"]
[TimeControl "180+1"]
[EndTime "11:06:17 PDT"]
[Termination "bancsoo won by checkmate"]

1. Nf3 {[%clk 0:03:00.9]} 1... g6 {[%clk 0:02:58.6]} 2. g3 {[%clk 0:03:01.2]}
2... Bg7 {[%clk 0:02:58.4]} 3. d4 {[%clk 0:03:01.9]} 3... d5 {[%clk 0:02:54.9]}
4. Bg2 {[%clk 0:03:01.8]} 4... Nf6 {[%clk 0:02:55.1]} 5. O-O {[%clk 0:03:02.2]}
5... O-O {[%clk 0:02:55.7]} 6. c4 {[%clk 0:03:02.9]} 6... Nc6 {[%clk 0:02:54.9]}
7. Na3 {[%clk 0:03:02.1]} 7... dxc4 {[%clk 0:02:52.9]} 8. Nxc4 {[%clk
0:03:01.9]} 8... Be6 {[%clk 0:02:52.7]} 9. b3 {[%clk 0:03:02.4]} 9... a5 {[%clk
0:02:52.3]} 10. Bb2 {[%clk 0:03:01.7]} 10... a4 {[%clk 0:02:50.4]} 11. Ng5
{[%clk 0:03:01.8]} 11... Bd5 {[%clk 0:02:32.5]} 12. e4 {[%clk 0:03:01.6]} 12...
Bxc4 {[%clk 0:02:33.2]} 13. bxc4 {[%clk 0:03:02.5]} 13... Nd7 {[%clk 0:02:33.6]}
14. Nf3 {[%clk 0:02:45.6]} 14... Nb6 {[%clk 0:02:32]} 15. Rc1 {[%clk 0:02:42.5]}
15... e6 {[%clk 0:01:59.8]} 16. c5 {[%clk 0:02:31.1]} 16... Nd7 {[%clk 0:01:58]}
17. Qc2 {[%clk 0:02:26.3]} 17... Nf6 {[%clk 0:01:50.2]} 18. Rcd1 {[%clk
0:02:22.5]} 18... Re8 {[%clk 0:01:45.7]} 19. a3 {[%clk 0:02:18.8]} 19... Na5
{[%clk 0:01:24.3]} 20. e5 {[%clk 0:01:57.7]} 20... Nd5 {[%clk 0:01:23.5]} 21.
Qxa4 {[%clk 0:01:58.4]} 21... b6 {[%clk 0:01:07.7]} 22. Nd2 {[%clk 0:01:52.8]}
22... bxc5 {[%clk 0:01:00.1]} 23. dxc5 {[%clk 0:01:53.7]} 23... Qb8 {[%clk
0:00:59.3]} 24. Qc2 {[%clk 0:01:50.2]} 24... Nc6 {[%clk 0:00:54.5]} 25. Nc4
{[%clk 0:01:45]} 25... Qb5 {[%clk 0:00:51.2]} 26. Bxd5 {[%clk 0:01:41.9]} 26...
exd5 {[%clk 0:00:52.1]} 27. Rxd5 {[%clk 0:01:42.2]} 27... Ra4 {[%clk 0:00:51.2]}
28. Rc1 {[%clk 0:01:41.5]} 28... Rb8 {[%clk 0:00:50]} 29. Ba1 {[%clk 0:01:31.8]}
29... Rxc4 {[%clk 0:00:49.7]} 30. Qxc4 {[%clk 0:01:27.5]} 30... Qxc4 {[%clk
0:00:50.6]} 31. Rxc4 {[%clk 0:01:28.3]} 31... Rb1+ {[%clk 0:00:50.2]} 32. Kg2
{[%clk 0:01:28.9]} 32... Rxa1 {[%clk 0:00:50.5]} 33. f4 {[%clk 0:01:21.7]} 33...
Ra2+ {[%clk 0:00:41.2]} 34. Kh3 {[%clk 0:01:21.5]} 34... Rxa3 {[%clk 0:00:39.6]}
35. Rd7 {[%clk 0:01:22.1]} 35... Ra7 {[%clk 0:00:37.4]} 36. Rc2 {[%clk
0:01:20.5]} 36... Bf8 {[%clk 0:00:33.8]} 37. Kg4 {[%clk 0:01:15.5]} 37... Be7
{[%clk 0:00:29.7]} 38. Re2 {[%clk 0:01:11.3]} 38... Kf8 {[%clk 0:00:26.4]} 39.
e6 {[%clk 0:01:07.4]} 39... f5+ {[%clk 0:00:23.3]} 40. Kh3 {[%clk 0:01:07.3]}
40... Ke8 {[%clk 0:00:23.2]} 41. Rb2 {[%clk 0:01:04.5]} 41... h5 {[%clk
0:00:18.4]} 42. Kg2 {[%clk 0:01:03.8]} 42... Nd8 {[%clk 0:00:16.9]} 43. Rb8
{[%clk 0:01:03]} 43... Bxc5 {[%clk 0:00:16.8]} 44. Rbxd8# {[%clk 0:01:02.2]} 1-0

[Event "*** Titled Tuesday Blitz"]
[Site "Chess.com"]
[Date "2020.04.28"]
[Round "6"]
[White "fugadelafuga"]
[Black "AleksanderHnydiuk"]
[Result "0-1"]
[WhiteElo "2402"]
[BlackElo "2576"]
[TimeControl "180+1"]
[EndTime "11:06:18 PDT"]
[Termination "AleksanderHnydiuk won by resignation"]

1. Nf3 {[%clk 0:02:28.8]} 1... d5 {[%clk 0:02:58.8]} 2. g3 {[%clk 0:02:27.2]}
2... Bg4 {[%clk 0:02:58.4]} 3. Bg2 {[%clk 0:02:28.1]} 3... Nd7 {[%clk
0:02:58.5]} 4. O-O {[%clk 0:02:28.1]} 4... c6 {[%clk 0:02:58.3]} 5. b3 {[%clk
0:02:27.9]} 5... e5 {[%clk 0:02:58]} 6. Bb2 {[%clk 0:02:27.4]} 6... Bd6 {[%clk
0:02:58.4]} 7. c4 {[%clk 0:02:23.3]} 7... d4 {[%clk 0:02:47.3]} 8. h3 {[%clk
0:02:04.7]} 8... Bh5 {[%clk 0:02:47.2]} 9. d3 {[%clk 0:02:01.7]} 9... Ne7 {[%clk
0:02:42.7]} 10. Ng5 {[%clk 0:01:58.9]} 10... O-O {[%clk 0:02:39.2]} 11. Ne4
{[%clk 0:01:55.5]} 11... Bc7 {[%clk 0:02:37]} 12. g4 {[%clk 0:01:55.2]} 12...
Bg6 {[%clk 0:02:36.5]} 13. Ba3 {[%clk 0:01:53.1]} 13... f5 {[%clk 0:02:11.6]}
14. gxf5 {[%clk 0:01:47.7]} 14... Bxf5 {[%clk 0:02:05.7]} 15. Nd6 {[%clk
0:01:44.6]} 15... Bxd6 {[%clk 0:02:01]} 16. Bxd6 {[%clk 0:01:45.5]} 16... Rf6
{[%clk 0:02:00.5]} 17. Bxe7 {[%clk 0:01:34.1]} 17... Qxe7 {[%clk 0:02:01.4]} 18.
Nd2 {[%clk 0:01:33.8]} 18... Rh6 {[%clk 0:01:57.5]} 19. Ne4 {[%clk 0:01:20.8]}
19... Qh4 {[%clk 0:01:34.8]} 20. Qe1 {[%clk 0:00:52.4]} 20... Bxe4 {[%clk
0:01:16.4]} 21. dxe4 {[%clk 0:00:49.5]} 21... Rg6 {[%clk 0:01:15.5]} 22. Kh1
{[%clk 0:00:45.1]} 22... Rf8 {[%clk 0:01:15.3]} 23. f3 {[%clk 0:00:43.7]} 23...
Qf4 {[%clk 0:01:11.3]} 24. Qf2 {[%clk 0:00:34]} 24... Nf6 {[%clk 0:01:10.7]} 25.
Qg1 {[%clk 0:00:15.6]} 25... Nh5 {[%clk 0:01:10]} 26. Qh2 {[%clk 0:00:14.5]}
26... Ng3+ {[%clk 0:01:09.9]} 27. Kg1 {[%clk 0:00:13.7]} 27... Nxe2+ {[%clk
0:01:09.7]} 28. Kh1 {[%clk 0:00:12.6]} 28... Ng3+ {[%clk 0:01:08.2]} 29. Kg1
{[%clk 0:00:12.3]} 29... Qe3+ {[%clk 0:01:07.5]} 30. Rf2 {[%clk 0:00:10.9]}
30... Nxe4 {[%clk 0:00:58.3]} 31. Rf1 {[%clk 0:00:07.4]} 31... Nxf2 {[%clk
0:00:55.4]} 32. Rxf2 {[%clk 0:00:08.3]} 32... Rxf3 {[%clk 0:00:52.7]} 33. Qxe5
{[%clk 0:00:06.1]} 33... Qxf2+ {[%clk 0:00:50.4]} 0-1

[Event "*** Titled Tuesday Blitz"]
[Site "Chess.com"]
[Date "2020.04.28"]
[Round "6"]
[White "Blagorod"]
[Black "vanyakuba"]
[Result "0-1"]
[WhiteElo "2147"]
[BlackElo "2406"]
[TimeControl "180+1"]
[EndTime "11:06:18 PDT"]
[Termination "vanyakuba won by resignation"]

1. e4 {[%clk 0:03:00.9]} 1... d5 {[%clk 0:02:58.7]} 2. exd5 {[%clk 0:03:00.4]}
2... Qxd5 {[%clk 0:02:59.1]} 3. Nf3 {[%clk 0:03:01]} 3... Nf6 {[%clk 0:02:58.1]}
4. d4 {[%clk 0:02:59.5]} 4... Bg4 {[%clk 0:02:57.8]} 5. Be2 {[%clk 0:02:59.1]}
5... Nc6 {[%clk 0:02:56.9]} 6. h3 {[%clk 0:02:54.8]} 6... Bh5 {[%clk 0:02:54.4]}
7. c4 {[%clk 0:02:53.5]} 7... Qf5 {[%clk 0:02:49.9]} 8. d5 {[%clk 0:02:28.9]}
8... Ne5 {[%clk 0:02:46.9]} 9. Nxe5 {[%clk 0:02:08.2]} 9... Qxe5 {[%clk
0:02:45.7]} 10. Nc3 {[%clk 0:02:08.6]} 10... Bxe2 {[%clk 0:02:41.5]} 11. Qxe2
{[%clk 0:02:07.9]} 11... Qxe2+ {[%clk 0:02:41.3]} 12. Nxe2 {[%clk 0:02:08]}
12... O-O-O {[%clk 0:02:41.8]} 13. O-O {[%clk 0:02:04.8]} 13... g6 {[%clk
0:02:37.3]} 14. b3 {[%clk 0:02:02.2]} 14... Bg7 {[%clk 0:02:37.7]} 15. Bb2
{[%clk 0:02:02.9]} 15... Nh5 {[%clk 0:02:31.4]} 16. Bxg7 {[%clk 0:02:01.8]}
16... Nxg7 {[%clk 0:02:32.3]} 17. Rfe1 {[%clk 0:02:01.4]} 17... e6 {[%clk
0:02:32.7]} 18. dxe6 {[%clk 0:01:58.8]} 18... Nxe6 {[%clk 0:02:33.6]} 19. Rad1
{[%clk 0:01:58]} 19... Rxd1 {[%clk 0:02:29.8]} 20. Rxd1 {[%clk 0:01:58.3]} 20...
Re8 {[%clk 0:02:30.7]} 21. Kf1 {[%clk 0:01:57.9]} 21... c6 {[%clk 0:02:23.5]}
22. g3 {[%clk 0:01:57.1]} 22... Kc7 {[%clk 0:02:22.7]} 23. Nd4 {[%clk
0:01:54.2]} 23... Nc5 {[%clk 0:02:19.7]} 24. Re1 {[%clk 0:01:51.5]} 24... Rxe1+
{[%clk 0:02:12.3]} 25. Kxe1 {[%clk 0:01:51.2]} 25... Nd3+ {[%clk 0:02:10.1]} 26.
Kf1 {[%clk 0:01:47.3]} 26... Nc1 {[%clk 0:02:01.9]} 27. a3 {[%clk 0:01:43.3]}
27... c5 {[%clk 0:01:56.7]} 28. Nb5+ {[%clk 0:01:36.4]} 28... Kb6 {[%clk
0:01:56.2]} 29. Nd6 {[%clk 0:01:25]} 29... Nxb3 {[%clk 0:01:49]} 30. Nxf7 {[%clk
0:01:25]} 30... Nd2+ {[%clk 0:01:48.7]} 31. Ke2 {[%clk 0:01:22.3]} 31... Nxc4
{[%clk 0:01:49.6]} 32. f4 {[%clk 0:01:20.1]} 32... Nxa3 {[%clk 0:01:42.7]} 33.
g4 {[%clk 0:01:18.3]} 33... Kc6 {[%clk 0:01:41.4]} 34. Ng5 {[%clk 0:01:17.4]}
34... c4 {[%clk 0:01:35.2]} 35. Nxh7 {[%clk 0:01:15.3]} 35... b5 {[%clk
0:01:28.2]} 36. f5 {[%clk 0:01:13.4]} 36... gxf5 {[%clk 0:01:28]} 37. gxf5
{[%clk 0:01:13.7]} 37... Kd5 {[%clk 0:01:27.6]} 38. Ng5 {[%clk 0:00:53.7]} 38...
Ke5 {[%clk 0:01:25.2]} 39. Nf3+ {[%clk 0:00:53.5]} 39... Kxf5 {[%clk 0:01:24.7]}
40. Kd2 {[%clk 0:00:51.2]} 40... b4 {[%clk 0:01:21]} 41. Nd4+ {[%clk 0:00:48.1]}
41... Ke4 {[%clk 0:01:09.9]} 42. Nc6 {[%clk 0:00:40.1]} 42... c3+ {[%clk
0:01:08.5]} 43. Kc1 {[%clk 0:00:33.5]} 43... b3 {[%clk 0:01:08.6]} 0-1

[Event "*** Titled Tuesday Blitz"]
[Site "Chess.com"]
[Date "2020.04.28"]
[Round "6"]
[White "Warerman"]
[Black "Playgood28"]
[Result "1-0"]
[WhiteElo "2448"]
[BlackElo "2222"]
[TimeControl "180+1"]
[EndTime "11:06:18 PDT"]
[Termination "Warerman won by checkmate"]

1. d4 {[%clk 0:03:00.9]} 1... f5 {[%clk 0:02:59.2]} 2. g3 {[%clk 0:02:59.2]}
2... Nf6 {[%clk 0:02:58.7]} 3. Bg2 {[%clk 0:03:00.1]} 3... g6 {[%clk 0:02:58.6]}
4. Nf3 {[%clk 0:03:01]} 4... Bg7 {[%clk 0:02:58.6]} 5. O-O {[%clk 0:03:01.9]}
5... d6 {[%clk 0:02:58.7]} 6. b3 {[%clk 0:03:02.8]} 6... O-O {[%clk 0:02:57.5]}
7. Bb2 {[%clk 0:03:02.6]} 7... Ne4 {[%clk 0:02:57.3]} 8. Nbd2 {[%clk 0:03:00]}
8... Nxd2 {[%clk 0:02:56.3]} 9. Qxd2 {[%clk 0:02:59.8]} 9... Nc6 {[%clk
0:02:56]} 10. Rad1 {[%clk 0:02:54.1]} 10... Qe8 {[%clk 0:02:52.6]} 11. Rfe1
{[%clk 0:02:47.1]} 11... e5 {[%clk 0:02:51.3]} 12. dxe5 {[%clk 0:02:46.7]} 12...
dxe5 {[%clk 0:02:49.7]} 13. e4 {[%clk 0:02:47.6]} 13... f4 {[%clk 0:02:46.4]}
14. Qe2 {[%clk 0:02:09.5]} 14... Bg4 {[%clk 0:02:41.1]} 15. h3 {[%clk 0:02:09]}
15... Bxf3 {[%clk 0:02:40.1]} 16. Bxf3 {[%clk 0:02:09.9]} 16... fxg3 {[%clk
0:02:38.8]} 17. fxg3 {[%clk 0:02:10.8]} 17... Rd8 {[%clk 0:02:30.4]} 18. Rd5
{[%clk 0:02:04]} 18... Nd4 {[%clk 0:02:25]} 19. Bxd4 {[%clk 0:02:02.1]} 19...
exd4 {[%clk 0:02:24.1]} 20. Kg2 {[%clk 0:01:57.8]} 20... Rxd5 {[%clk 0:02:06.8]}
21. exd5 {[%clk 0:01:58.7]} 21... Qxe2+ {[%clk 0:02:06.2]} 22. Rxe2 {[%clk
0:01:58]} 22... Kf7 {[%clk 0:02:02.2]} 23. d6 {[%clk 0:01:50.9]} 23... cxd6
{[%clk 0:01:59.1]} 24. Bd5+ {[%clk 0:01:46.7]} 24... Kf6 {[%clk 0:01:56.1]} 25.
Re6+ {[%clk 0:01:33.2]} 25... Kg5 {[%clk 0:01:40.3]} 26. h4+ {[%clk 0:01:30.6]}
26... Kh6 {[%clk 0:01:30.9]} 27. g4 {[%clk 0:01:29.2]} 27... Be5 {[%clk
0:01:26]} 28. Re7 {[%clk 0:01:20.9]} 28... d3 {[%clk 0:00:29]} 29. g5+ {[%clk
0:00:38.3]} 29... Kh5 {[%clk 0:00:27.4]} 30. Kh3 {[%clk 0:00:38.9]} 30... h6
{[%clk 0:00:18.3]} 31. Rh7 {[%clk 0:00:38.4]} 31... Rh8 {[%clk 0:00:18.1]} 32.
Bf3# {[%clk 0:00:35.5]} 1-0

[Event "*** Titled Tuesday Blitz"]
[Site "Chess.com"]
[Date "2020.04.28"]
[Round "6"]
[White "manmanlai1"]
[Black "harkerchess"]
[Result "1-0"]
[WhiteElo "2298"]
[BlackElo "2017"]
[TimeControl "180+1"]
[EndTime "11:06:19 PDT"]
[Termination "manmanlai1 won by resignation"]

1. e4 {[%clk 0:02:35]} 1... e5 {[%clk 0:02:59.4]} 2. Nf3 {[%clk 0:02:34.1]} 2...
Nc6 {[%clk 0:02:58.2]} 3. Bb5 {[%clk 0:02:32.9]} 3... a6 {[%clk 0:02:57.6]} 4.
Ba4 {[%clk 0:02:33]} 4... Nf6 {[%clk 0:02:57.2]} 5. Bxc6 {[%clk 0:02:32.9]} 5...
dxc6 {[%clk 0:02:56.1]} 6. d3 {[%clk 0:02:33.3]} 6... Bd6 {[%clk 0:02:53.7]} 7.
Nbd2 {[%clk 0:02:33.2]} 7... O-O {[%clk 0:02:53]} 8. Nf1 {[%clk 0:02:33.1]} 8...
Be6 {[%clk 0:02:49.7]} 9. Ng3 {[%clk 0:02:33.1]} 9... Qd7 {[%clk 0:02:48.8]} 10.
O-O {[%clk 0:02:32.3]} 10... Rad8 {[%clk 0:02:46.7]} 11. Bg5 {[%clk 0:02:30.1]}
11... Kh8 {[%clk 0:02:37.5]} 12. Qe2 {[%clk 0:02:19.3]} 12... Bg4 {[%clk
0:02:33.4]} 13. h3 {[%clk 0:02:13.7]} 13... Be6 {[%clk 0:02:23.1]} 14. Qe3
{[%clk 0:02:03]} 14... c5 {[%clk 0:01:58.1]} 15. b3 {[%clk 0:01:40]} 15... Rg8
{[%clk 0:01:52.4]} 16. a4 {[%clk 0:01:25.3]} 16... b6 {[%clk 0:01:47.8]} 17. Kh2
{[%clk 0:01:24.7]} 17... c6 {[%clk 0:01:39.7]} 18. a5 {[%clk 0:01:23]} 18... b5
{[%clk 0:01:38.4]} 19. c4 {[%clk 0:01:21.7]} 19... b4 {[%clk 0:01:34.4]} 20.
Rad1 {[%clk 0:01:17.1]} 20... Qc7 {[%clk 0:01:33]} 21. Kh1 {[%clk 0:01:11.7]}
21... Qxa5 {[%clk 0:01:32]} 22. Nh4 {[%clk 0:01:09.7]} 22... Qc7 {[%clk
0:01:25.2]} 23. Bxf6 {[%clk 0:01:02.4]} 23... gxf6 {[%clk 0:01:24.5]} 24. Qh6
{[%clk 0:01:02.6]} 24... Be7 {[%clk 0:01:06]} 25. Nh5 {[%clk 0:00:58.5]} 25...
f5 {[%clk 0:00:45.4]} 26. Nf6 {[%clk 0:00:43.2]} 26... Bxf6 {[%clk 0:00:34.8]}
27. Qxf6+ {[%clk 0:00:44.1]} 27... Rg7 {[%clk 0:00:35.2]} 28. exf5 {[%clk
0:00:39.8]} 28... Bc8 {[%clk 0:00:29.8]} 29. Rfe1 {[%clk 0:00:39.9]} 29... Re8
{[%clk 0:00:26.4]} 30. Nf3 {[%clk 0:00:38.5]} 30... Qd7 {[%clk 0:00:22.2]} 31.
g4 {[%clk 0:00:37.4]} 31... e4 {[%clk 0:00:20.1]} 32. dxe4 {[%clk 0:00:36.2]}
32... Qe7 {[%clk 0:00:20.2]} 33. Qxe7 {[%clk 0:00:35.5]} 33... Rxe7 {[%clk
0:00:21.1]} 34. f6 {[%clk 0:00:36]} 1-0